fUST/lending_fUST_20260601
["ID","MTS","AMOUNT","RATE_DAILY","PERIOD"]
[423662177,1780287033000,-500.47834663,0.00025051,2]
[423662176,1780287033000,-500.30161949,0.00025051,2]
[423662149,1780287033000,-500.0,0.00025051,2]
[423662153,1780287033000,-487.65425739,0.00025051,2]
[423662154,1780287033000,-500.0,0.00025051,2]
[423662155,1780287033000,-500.0,0.00025051,2]
[423662160,1780287033000,-500.0,0.00025051,2]
[423662164,1780287033000,-500.0,0.00025051,2]
[423662163,1780287033000,-500.0,0.00025051,2]
[423662156,1780287033000,-500.0,0.00025051,2]
[423662166,1780287033000,-500.0,0.00025051,2]
[423662165,1780287033000,-500.0,0.00025051,2]
[423662157,1780287033000,-500.21798976,0.00025051,2]
[423662158,1780287033000,-500.0,0.00025051,2]
[423662150,1780287033000,-500.0,0.00025051,2]
[423662161,1780287033000,-500.0,0.00025051,2]
[423662159,1780287033000,-500.19246742,0.00025051,2]
[423662172,1780287033000,-502.65475589,0.00025051,2]
[423662173,1780287033000,-500.0,0.00025051,2]
[423662175,1780287033000,-500.0,0.00025051,2]
[423662174,1780287033000,-500.0,0.00025051,2]
[423662169,1780287033000,-500.0,0.00025051,2]
[423662171,1780287033000,-500.0,0.00025051,2]
[423662208,1780287033000,-211.48301387,0.00025051,2]
[423662168,1780287033000,-500.0,0.00025051,2]
[423662178,1780287033000,-500.0,0.00025051,2]
[423662167,1780287033000,-500.0,0.00025051,2]
[423662162,1780287033000,-500.44928669,0.00025051,2]
[423662170,1780287033000,-535.86894549,0.00025051,2]
[423662221,1780287034000,-500.0,0.00025051,2]
[423662219,1780287034000,-500.0,0.00025051,2]
[423662223,1780287034000,-500.0,0.00025051,2]
[423662217,1780287034000,-500.0,0.00025051,2]
[423662216,1780287034000,-500.27065003,0.00025051,2]
[423662211,1780287034000,-500.46547353,0.00025051,2]
[423662215,1780287034000,-500.0,0.00025051,2]
[423662214,1780287034000,-500.0,0.00025051,2]
[423662212,1780287034000,-500.0,0.00025051,2]
[423662210,1780287034000,-500.49100043,0.00025051,2]
[423662209,1780287034000,-288.51698613,0.00025051,2]
[423662220,1780287034000,-500.0,0.00025051,2]
[423662218,1780287034000,-500.0,0.00025051,2]
[423662222,1780287034000,-500.54291492,0.00025051,2]
[423662228,1780287034000,-500.4049982,0.00025051,2]
[423662225,1780287034000,-500.0,0.00025051,2]
[423662213,1780287034000,-500.0,0.00025051,2]
[423662234,1780287034000,-500.50841654,0.00025051,2]
[423662235,1780287034000,-500.36409676,0.00025051,2]
[423662232,1780287034000,-474.55130306,0.00025051,2]
[423662233,1780287034000,-500.0,0.00025051,2]
[423662231,1780287034000,-25.44869694,0.00025051,2]
[423662236,1780287034000,-548.41488678,0.00025051,2]
[423662229,1780287034000,-134.30797676,0.00025051,2]
[423662227,1780287034000,-500.0,0.00025051,2]
[423662226,1780287034000,-500.0,0.00025051,2]
[423662237,1780287034000,-125.17158167,0.00025051,2]
[423662224,1780287034000,-500.0,0.00025051,2]
[423662230,1780287034000,-365.69202324,0.00025051,2]
[423662266,1780287038000,-500.24919795,0.00025051,2]
[423662260,1780287038000,-500.0,0.00025051,2]
[423662255,1780287038000,-500.0,0.00025051,2]
[423662263,1780287038000,-500.0,0.00025051,2]
[423662264,1780287038000,-500.52955755,0.00025051,2]
[423662262,1780287038000,-500.55977849,0.00025051,2]
[423662254,1780287038000,-500.0,0.00025051,2]
[423662265,1780287038000,-500.0,0.00025051,2]
[423662256,1780287038000,-500.5454891,0.00025051,2]
[423662253,1780287038000,-375.32668928,0.00025051,2]
[423662258,1780287038000,-501.08045567,0.00025051,2]
[423662257,1780287038000,-500.0,0.00025051,2]
[423662261,1780287038000,-500.66801687,0.00025051,2]
[423662259,1780287038000,-502.14686735,0.00025051,2]
[423662267,1780287038000,-501.00883204,0.00025051,2]
[423662281,1780287038000,-500.0,0.00025051,2]
[423662271,1780287038000,-501.58243536,0.00025051,2]
[423662269,1780287038000,-500.0,0.00025051,2]
[423662283,1780287038000,-500.53554513,0.00025051,2]
[423662282,1780287038000,-500.0,0.00025051,2]
[423662277,1780287038000,-500.0,0.00025051,2]
[423662279,1780287038000,-1001.06022028,0.00025051,2]
[423662280,1780287038000,-500.0,0.00025051,2]
[423662275,1780287038000,-500.0,0.00025051,2]
[423662284,1780287038000,-500.24418143,0.00025051,2]
[423662278,1780287038000,-500.0,0.00025051,2]
[423662273,1780287038000,-555.61662549,0.00025051,2]
[423662274,1780287038000,-500.95454521,0.00025051,2]
[423662268,1780287038000,-500.0,0.00025051,2]
[423662270,1780287038000,-500.0,0.00025051,2]
[423662276,1780287038000,-500.0,0.00025051,2]
[423662272,1780287038000,-500.99274955,0.00025051,2]
[423662330,1780287039000,-500.45450201,0.00025051,2]
[423662323,1780287039000,-500.0,0.00025051,2]
[423662321,1780287039000,-505.91115447,0.00025051,2]
[423662326,1780287039000,-500.57485899,0.00025051,2]
[423662320,1780287039000,-500.0,0.00025051,2]
[423662329,1780287039000,-500.0,0.00025051,2]
[423662322,1780287039000,-500.0,0.00025051,2]
[423662328,1780287039000,-500.0,0.00025051,2]
[423662318,1780287039000,-500.53341659,0.00025051,2]
[423662324,1780287039000,-500.0,0.00025051,2]
[423662314,1780287039000,-500.0,0.00025051,2]
[423662319,1780287039000,-500.0,0.00025051,2]
[423662325,1780287039000,-501.6677609,0.00025051,2]
[423662338,1780287039000,-500.0,0.00025051,2]
[423662331,1780287039000,-500.5916192,0.00025051,2]
[423662334,1780287039000,-500.0,0.00025051,2]
[423662335,1780287039000,-500.0,0.00025051,2]
[423662333,1780287039000,-500.0,0.00025051,2]
[423662332,1780287039000,-500.0,0.00025051,2]
[423662315,1780287039000,-501.13330581,0.00025051,2]
[423662337,1780287039000,-203.24755925,0.00025051,2]
[423662340,1780287039000,-500.0,0.00025051,2]
[423662336,1780287039000,-500.0,0.00025051,2]
[423662339,1780287039000,-500.0,0.00025051,2]
[423662341,1780287039000,-500.0,0.00025051,2]
[423662342,1780287039000,-500.0,0.00025051,2]
[423662344,1780287039000,-500.0,0.00025051,2]
[423662327,1780287039000,-500.0,0.00025051,2]
[423662313,1780287039000,-500.0,0.00025051,2]
[423662316,1780287039000,-500.0,0.00025051,2]
[423662312,1780287039000,-500.0,0.00025051,2]
[423662346,1780287039000,-18.0974806,0.00025051,2]
[423662286,1780287039000,-500.92896811,0.00025051,2]
[423662285,1780287039000,-500.19135158,0.00025051,2]
[423662290,1780287039000,-500.54349791,0.00025051,2]
[423662287,1780287039000,-500.0,0.00025051,2]
[423662289,1780287039000,-500.64389439,0.00025051,2]
[423662288,1780287039000,-500.0,0.00025051,2]
[423662293,1780287039000,-500.0,0.00025051,2]
[423662294,1780287039000,-500.0,0.00025051,2]
[423662303,1780287039000,-500.0,0.00025051,2]
[423662291,1780287039000,-500.0,0.00025051,2]
[423662296,1780287039000,-500.0,0.00025051,2]
[423662301,1780287039000,-500.0,0.00025051,2]
[423662297,1780287039000,-500.0,0.00025051,2]
[423662302,1780287039000,-500.0,0.00025051,2]
[423662298,1780287039000,-500.0,0.00025051,2]
[423662299,1780287039000,-500.0,0.00025051,2]
[423662295,1780287039000,-500.0,0.00025051,2]
[423662292,1780287039000,-500.59545743,0.00025051,2]
[423662300,1780287039000,-500.0,0.00025051,2]
[423662304,1780287039000,-500.0,0.00025051,2]
[423662306,1780287039000,-500.45622406,0.00025051,2]
[423662307,1780287039000,-500.0,0.00025051,2]
[423662305,1780287039000,-554.64285297,0.00025051,2]
[423662311,1780287039000,-389.63314839,0.00025051,2]
[423662309,1780287039000,-501.75978161,0.00025051,2]
[423662308,1780287039000,-500.0,0.00025051,2]
[423662310,1780287039000,-500.0,0.00025051,2]
[423662349,1780287039000,-500.0,0.00025051,2]
[423662317,1780287039000,-500.0,0.00025051,2]
[423662345,1780287039000,-481.9025194,0.00025051,2]
[423662380,1780287039000,-500.0,0.00025051,2]
[423662388,1780287039000,-500.0,0.00025051,2]
[423662379,1780287039000,-500.0,0.00025051,2]
[423662390,1780287039000,-500.6516578,0.00025051,2]
[423662385,1780287039000,-500.0,0.00025051,2]
[423662389,1780287039000,-500.0,0.00025051,2]
[423662384,1780287039000,-500.0,0.00025051,2]
[423662381,1780287039000,-500.5554525,0.00025051,2]
[423662383,1780287039000,-500.0,0.00025051,2]
[423662382,1780287039000,-500.90143777,0.00025051,2]
[423662387,1780287039000,-500.0,0.00025051,2]
[423662394,1780287039000,-421.96924667,0.00025051,2]
[423662396,1780287039000,-500.0,0.00025051,2]
[423662393,1780287039000,-500.0,0.00025051,2]
[423662391,1780287039000,-500.0,0.00025051,2]
[423662392,1780287039000,-500.0,0.00025051,2]
[423662395,1780287039000,-500.0,0.00025051,2]
[423662398,1780287039000,-500.0,0.00025051,2]
[423662397,1780287039000,-500.0,0.00025051,2]
[423662400,1780287039000,-500.0,0.00025051,2]
[423662399,1780287039000,-500.0,0.00025051,2]
[423662403,1780287039000,-500.0,0.00025051,2]
[423662401,1780287039000,-500.0,0.00025051,2]
[423662402,1780287039000,-500.0,0.00025051,2]
[423662404,1780287039000,-500.0,0.00025051,2]
[423662406,1780287039000,-500.0,0.00025051,2]
[423662351,1780287039000,-10.88203255,0.00025051,2]
[423662374,1780287039000,-500.0,0.00025051,2]
[423662372,1780287039000,-500.0,0.00025051,2]
[423662386,1780287039000,-500.0,0.00025051,2]
[423662371,1780287039000,-500.0,0.00025051,2]
[423662347,1780287039000,-500.0,0.00025051,2]
[423662370,1780287039000,-500.0,0.00025051,2]
[423662348,1780287039000,-500.0,0.00025051,2]
[423662350,1780287039000,-500.0,0.00025051,2]
[423662343,1780287039000,-500.0,0.00025051,2]
[423662358,1780287039000,-1193.2565,0.00025051,2]
[423662364,1780287039000,-419.69359756,0.00025051,2]
[423662354,1780287039000,-500.0,0.00025051,2]
[423662360,1780287039000,-500.0,0.00025051,2]
[423662352,1780287039000,-489.49677858,0.00025051,2]
[423662362,1780287039000,-501.85026752,0.00025051,2]
[423662356,1780287039000,-174.11140613,0.00025051,2]
[423662357,1780287039000,-500.0,0.00025051,2]
[423662363,1780287039000,-500.38439688,0.00025051,2]
[423662359,1780287039000,-500.0,0.00025051,2]
[423662355,1780287039000,-500.0,0.00025051,2]
[423662378,1780287039000,-500.0,0.00025051,2]
[423662353,1780287039000,-500.0,0.00025051,2]
[423662373,1780287039000,-501.37548843,0.00025051,2]
[423662405,1780287039000,-500.0,0.00025051,2]
[423662368,1780287039000,-500.35115407,0.00025051,2]
[423662369,1780287039000,-500.0,0.00025051,2]
[423662367,1780287039000,-500.0,0.00025051,2]
[423662375,1780287039000,-500.0,0.00025051,2]
[423662376,1780287039000,-500.60591388,0.00025051,2]
[423662366,1780287039000,-500.0,0.00025051,2]
[423662365,1780287039000,-80.30640244,0.00025051,2]
[423662361,1780287039000,-500.0,0.00025051,2]
[423662377,1780287039000,-613.52362252,0.00025051,2]
[423662451,1780287040000,-500.0,0.00025056,2]
[423662450,1780287040000,-500.66997673,0.00025056,2]
[423662443,1780287040000,-500.82289628,0.00025056,2]
[423662446,1780287040000,-500.31115511,0.00025056,2]
[423662445,1780287040000,-500.0,0.00025056,2]
[423662434,1780287040000,-500.0,0.00025056,2]
[423662449,1780287040000,-500.74945823,0.00025056,2]
[423662441,1780287040000,-501.72739236,0.00025056,2]
[423662447,1780287040000,-501.24492162,0.00025056,2]
[423662442,1780287040000,-500.39160018,0.00025056,2]
[423662448,1780287040000,-500.51184655,0.00025056,2]
[423662444,1780287040000,-508.50050832,0.00025056,2]
[423662453,1780287040000,-620.12090188,0.00025056,2]
[423662463,1780287040000,-500.5686038,0.00025056,2]
[423662455,1780287040000,-501.15452837,0.00025056,2]
[423662454,1780287040000,-500.79057072,0.00025056,2]
[423662467,1780287040000,-503.34747573,0.00025056,2]
[423662468,1780287040000,-500.84067696,0.00025056,2]
[423662465,1780287040000,-500.58806909,0.00025056,2]
[423662466,1780287040000,-500.72782761,0.00025056,2]
[423662462,1780287040000,-500.0,0.00025056,2]
[423662459,1780287040000,-501.63472868,0.00025056,2]
[423662457,1780287040000,-501.89336068,0.00025056,2]
[423662460,1780287040000,-623.98218972,0.00025056,2]
[423662458,1780287040000,-500.0,0.00025056,2]
[423662464,1780287040000,-500.85315882,0.00025056,2]
[423662435,1780287040000,-500.90581173,0.00025056,2]
[423662452,1780287040000,-500.49737904,0.00025056,2]
[423662436,1780287040000,-501.71433007,0.00025056,2]
[423662410,1780287040000,-461.86575976,0.00025051,2]
[423662433,1780287040000,-500.0,0.00025053,2]
[423662470,1780287040000,-502.8293421,0.00025056,2]
[423662411,1780287040000,-500.77229696,0.00025052,2]
[423662412,1780287040000,-500.0,0.00025052,2]
[423662409,1780287040000,-500.0,0.00025051,2]
[423662413,1780287040000,-502.52722777,0.00025052,2]
[423662407,1780287040000,-500.0,0.00025051,2]
[423662408,1780287040000,-500.0,0.00025051,2]
[423662425,1780287040000,-500.28548071,0.00025053,2]
[423662415,1780287040000,-500.518524,0.00025053,2]
[423662426,1780287040000,-500.0,0.00025053,2]
[423662420,1780287040000,-500.0,0.00025053,2]
[423662419,1780287040000,-438.2251422,0.00025053,2]
[423662416,1780287040000,-502.6424227,0.00025053,2]
[423662437,1780287040000,-500.0,0.00025056,2]
[423662418,1780287040000,-500.28126543,0.00025053,2]
[423662417,1780287040000,-500.0,0.00025053,2]
[423662424,1780287040000,-500.0,0.00025053,2]
[423662422,1780287040000,-500.0,0.00025053,2]
[423662414,1780287040000,-501.41985719,0.00025052,2]
[423662423,1780287040000,-500.0,0.00025053,2]
[423662427,1780287040000,-500.0,0.00025053,2]
[423662430,1780287040000,-500.0,0.00025053,2]
[423662429,1780287040000,-500.0,0.00025053,2]
[423662428,1780287040000,-500.0,0.00025053,2]
[423662431,1780287040000,-500.0,0.00025053,2]
[423662439,1780287040000,-344.47711498,0.00025056,2]
[423662440,1780287040000,-500.68947392,0.00025056,2]
[423662432,1780287040000,-647.05483344,0.00025053,2]
[423662421,1780287040000,-500.0,0.00025053,2]
[423662481,1780287040000,-500.25528771,0.00025056,2]
[423662476,1780287040000,-184.89533053,0.00025056,2]
[423662471,1780287040000,-500.84030269,0.00025056,2]
[423662506,1780287040000,-500.62095204,0.00025056,2]
[423662518,1780287040000,-500.0,0.00025056,2]
[423662508,1780287040000,-500.0,0.00025056,2]
[423662511,1780287040000,-500.24083588,0.00025056,2]
[423662513,1780287040000,-503.08568008,0.00025056,2]
[423662515,1780287040000,-500.50972214,0.00025056,2]
[423662516,1780287040000,-500.0,0.00025056,2]
[423662510,1780287040000,-501.07848283,0.00025056,2]
[423662509,1780287040000,-500.53110206,0.00025056,2]
[423662512,1780287040000,-381.09161671,0.00025056,2]
[423662514,1780287040000,-500.0,0.00025056,2]
[423662520,1780287040000,-500.0,0.00025056,2]
[423662530,1780287040000,-500.0,0.00025056,2]
[423662517,1780287040000,-306.61789823,0.00025056,2]
[423662531,1780287040000,-500.0,0.00025056,2]
[423662522,1780287040000,-500.87193542,0.00025056,2]
[423662521,1780287040000,-500.0,0.00025056,2]
[423662524,1780287040000,-500.0,0.00025056,2]
[423662526,1780287040000,-500.0,0.00025056,2]
[423662525,1780287040000,-500.0,0.00025056,2]
[423662523,1780287040000,-500.0,0.00025056,2]
[423662480,1780287040000,-501.06756095,0.00025056,2]
[423662528,1780287040000,-500.0,0.00025056,2]
[423662529,1780287040000,-500.0,0.00025056,2]
[423662532,1780287040000,-505.08936809,0.00025056,2]
[423662534,1780287040000,-500.0,0.00025323,2]
[423662535,1780287040000,-500.0,0.00025323,2]
[423662533,1780287040000,-500.0,0.00025056,2]
[423662519,1780287040000,-500.0,0.00025056,2]
[423662507,1780287040000,-501.00363787,0.00025056,2]
[423662527,1780287040000,-500.0,0.00025056,2]
[423662503,1780287040000,-501.00243023,0.00025056,2]
[423662504,1780287040000,-500.99611911,0.00025056,2]
[423662469,1780287040000,-500.28077767,0.00025056,2]
[423662473,1780287040000,-500.74676485,0.00025056,2]
[423662472,1780287040000,-500.93419064,0.00025056,2]
[423662475,1780287040000,-501.64684757,0.00025056,2]
[423662477,1780287040000,-503.19604635,0.00025056,2]
[423662479,1780287040000,-502.34067751,0.00025056,2]
[423662478,1780287040000,-502.02419337,0.00025056,2]
[423662482,1780287040000,-500.0,0.00025056,2]
[423662485,1780287040000,-500.4279978,0.00025056,2]
[423662484,1780287040000,-500.0,0.00025056,2]
[423662483,1780287040000,-500.40769425,0.00025056,2]
[423662489,1780287040000,-502.13333235,0.00025056,2]
[423662488,1780287040000,-503.03858213,0.00025056,2]
[423662474,1780287040000,-500.88846205,0.00025056,2]
[423662486,1780287040000,-500.3203606,0.00025056,2]
[423662491,1780287040000,-500.0,0.00025056,2]
[423662500,1780287040000,-501.55079487,0.00025056,2]
[423662505,1780287040000,-501.32556503,0.00025056,2]
[423662499,1780287040000,-500.43878886,0.00025056,2]
[423662498,1780287040000,-500.0,0.00025056,2]
[423662497,1780287040000,-500.10369401,0.00025056,2]
[423662501,1780287040000,-500.60072628,0.00025056,2]
[423662490,1780287040000,-500.49637765,0.00025056,2]
[423662487,1780287040000,-501.180938,0.00025056,2]
[423662493,1780287040000,-500.0,0.00025056,2]
[423662494,1780287040000,-500.0,0.00025056,2]
[423662492,1780287040000,-500.97589489,0.00025056,2]
[423662496,1780287040000,-502.99719614,0.00025056,2]
[423662561,1780287041000,-500.0,0.00025324,2]
[423662563,1780287041000,-500.0,0.00025324,2]
[423662565,1780287041000,-501.25667404,0.00025325,2]
[423662564,1780287041000,-500.0,0.00025324,9]
[423662566,1780287041000,-502.10512751,0.00025325,2]
[423662567,1780287041000,-151.72280326,0.00025325,2]
[423662568,1780287041000,-502.83020178,0.00025325,2]
[423662569,1780287041000,-500.0,0.00025325,2]
[423662571,1780287041000,-500.0,0.00025325,2]
[423662570,1780287041000,-502.033757,0.00025325,2]
[423662578,1780287041000,-500.72462293,0.00025325,2]
[423662573,1780287041000,-500.0,0.00025325,2]
[423662576,1780287041000,-500.0,0.00025325,2]
[423662575,1780287041000,-500.74178242,0.00025325,2]
[423662574,1780287041000,-458.75184128,0.00025325,2]
[423662577,1780287041000,-503.35687487,0.00025325,2]
[423662581,1780287041000,-501.39046815,0.00025325,2]
[423662583,1780287041000,-502.52791605,0.00025325,2]
[423662582,1780287041000,-501.07203919,0.00025325,2]
[423662558,1780287041000,-500.0,0.00025324,2]
[423662572,1780287041000,-501.88478548,0.00025325,2]
[423662562,1780287041000,-500.0,0.00025324,2]
[423662537,1780287041000,-500.0,0.00025323,2]
[423662559,1780287041000,-500.0,0.00025324,2]
[423662538,1780287041000,-500.0,0.00025323,2]
[423662545,1780287041000,-500.0,0.00025323,2]
[423662541,1780287041000,-500.0,0.00025323,2]
[423662542,1780287041000,-500.0,0.00025323,2]
[423662540,1780287041000,-500.0,0.00025323,2]
[423662543,1780287041000,-500.0,0.00025323,2]
[423662536,1780287041000,-500.0,0.00025323,2]
[423662544,1780287041000,-500.0,0.00025323,2]
[423662539,1780287041000,-500.0,0.00025323,2]
[423662547,1780287041000,-500.0,0.00025323,2]
[423662546,1780287041000,-500.0,0.00025323,2]
[423662549,1780287041000,-500.0,0.00025324,2]
[423662552,1780287041000,-500.0,0.00025324,2]
[423662580,1780287041000,-500.0,0.00025325,2]
[423662556,1780287041000,-500.0,0.00025324,2]
[423662554,1780287041000,-569.56,0.00025324,2]
[423662548,1780287041000,-500.0,0.00025323,2]
[423662551,1780287041000,-500.0,0.00025324,2]
[423662550,1780287041000,-500.0,0.00025324,2]
[423662555,1780287041000,-500.0,0.00025324,2]
[423662557,1780287041000,-500.0,0.00025324,2]
[423662560,1780287041000,-500.0,0.00025324,2]
[423662579,1780287041000,-500.0,0.00025325,2]
[423662618,1780287041000,-500.0,0.00025325,2]
[423662586,1780287041000,-500.58195449,0.00025325,2]
[423662609,1780287041000,-501.11120426,0.00025325,2]
[423662608,1780287041000,-502.53828119,0.00025325,2]
[423662607,1780287041000,-575.99870113,0.00025325,2]
[423662611,1780287041000,-639.91009301,0.00025325,2]
[423662612,1780287041000,-500.0,0.00025325,2]
[423662614,1780287041000,-500.47362068,0.00025325,2]
[423662613,1780287041000,-500.0,0.00025325,2]
[423662630,1780287041000,-500.0,0.00025325,2]
[423662620,1780287041000,-500.0,0.00025325,2]
[423662619,1780287041000,-500.0,0.00025325,2]
[423662621,1780287041000,-504.11175842,0.00025325,2]
[423662625,1780287041000,-500.0,0.00025325,2]
[423662629,1780287041000,-500.0,0.00025325,2]
[423662623,1780287041000,-500.0,0.00025325,2]
[423662624,1780287041000,-501.30480761,0.00025325,2]
[423662622,1780287041000,-500.0,0.00025325,2]
[423662627,1780287041000,-2793.012491,0.00025325,2]
[423662628,1780287041000,-500.50755703,0.00025325,2]
[423662632,1780287041000,-500.0,0.00025325,2]
[423662631,1780287041000,-508.38339088,0.00025325,2]
[423662584,1780287041000,-501.0891325,0.00025325,2]
[423662616,1780287041000,-500.0,0.00025325,2]
[423662617,1780287041000,-500.46110085,0.00025325,2]
[423662626,1780287041000,-500.0,0.00025325,2]
[423662610,1780287041000,-501.75426516,0.00025325,2]
[423662585,1780287041000,-502.40620557,0.00025325,2]
[423662606,1780287041000,-500.0,0.00025325,2]
[423662587,1780287041000,-340.57940356,0.00025325,2]
[423662589,1780287041000,-500.25900731,0.00025325,2]
[423662588,1780287041000,-500.74115482,0.00025325,2]
[423662592,1780287041000,-501.20106094,0.00025325,2]
[423662591,1780287041000,-500.85559149,0.00025325,2]
[423662593,1780287041000,-500.0,0.00025325,2]
[423662595,1780287041000,-380.03322273,0.00025325,2]
[423662594,1780287041000,-500.65255913,0.00025325,2]
[423662590,1780287041000,-500.53400338,0.00025325,2]
[423662600,1780287041000,-501.53677376,0.00025325,2]
[423662604,1780287041000,-500.0,0.00025325,2]
[423662602,1780287041000,-501.43057388,0.00025325,2]
[423662605,1780287041000,-500.0,0.00025325,2]
[423662596,1780287041000,-500.32596213,0.00025325,2]
[423662601,1780287041000,-500.0,0.00025325,2]
[423662597,1780287041000,-501.07860062,0.00025325,2]
[423662599,1780287041000,-500.0,0.00025325,2]
[423662603,1780287041000,-445.74038047,0.00025325,2]
[423662598,1780287041000,-500.33977144,0.00025325,2]
[423662615,1780287041000,-861.985739,0.00025325,2]
[423662680,1780287042000,-500.0,0.00025325,2]
[423662682,1780287042000,-500.0,0.00025325,2]
[423662676,1780287042000,-500.0,0.00025325,2]
[423662674,1780287042000,-500.0,0.00025325,2]
[423662675,1780287042000,-500.0,0.00025325,2]
[423662671,1780287042000,-500.0,0.00025325,2]
[423662672,1780287042000,-500.0,0.00025325,2]
[423662684,1780287042000,-500.0,0.00025325,2]
[423662664,1780287042000,-502.27713769,0.00025325,2]
[423662668,1780287042000,-500.0,0.00025325,2]
[423662673,1780287042000,-501.59529345,0.00025325,2]
[423662665,1780287042000,-500.0,0.00025325,2]
[423662683,1780287042000,-500.0,0.00025325,2]
[423662678,1780287042000,-500.0,0.00025325,2]
[423662690,1780287042000,-199.5886521,0.00025325,2]
[423662679,1780287042000,-500.0,0.00025325,2]
[423662681,1780287042000,-500.52302768,0.00025325,2]
[423662696,1780287042000,-500.0,0.00025325,2]
[423662686,1780287042000,-500.0,0.00025325,2]
[423662697,1780287042000,-500.56908023,0.00025325,2]
[423662698,1780287042000,-500.0,0.00025325,2]
[423662685,1780287042000,-500.0,0.00025325,2]
[423662687,1780287042000,-500.97527908,0.00025325,2]
[423662689,1780287042000,-501.56515379,0.00025325,2]
[423662688,1780287042000,-500.54116099,0.00025325,2]
[423662694,1780287042000,-500.0,0.00025325,2]
[423662692,1780287042000,-502.45648542,0.00025325,2]
[423662693,1780287042000,-500.0,0.00025325,2]
[423662667,1780287042000,-500.0,0.00025325,2]
[423662677,1780287042000,-500.0,0.00025325,2]
[423662662,1780287042000,-502.04515309,0.00025325,2]
[423662639,1780287042000,-575.4656802,0.00025325,2]
[423662663,1780287042000,-500.0,0.00025325,2]
[423662642,1780287042000,-500.61407105,0.00025325,2]
[423662643,1780287042000,-500.72560497,0.00025325,2]
[423662634,1780287042000,-500.0,0.00025325,2]
[423662635,1780287042000,-501.44724951,0.00025325,2]
[423662633,1780287042000,-527.4894581,0.00025325,2]
[423662638,1780287042000,-581.52978652,0.00025325,2]
[423662640,1780287042000,-500.0,0.00025325,2]
[423662641,1780287042000,-500.52501496,0.00025325,2]
[423662695,1780287042000,-500.0,0.00025325,2]
[423662637,1780287042000,-500.0,0.00025325,2]
[423662645,1780287042000,-500.52027314,0.00025325,2]
[423662644,1780287042000,-502.89074716,0.00025325,2]
[423662653,1780287042000,-500.0,0.00025325,2]
[423662646,1780287042000,-500.0,0.00025325,2]
[423662666,1780287042000,-500.0,0.00025325,2]
[423662654,1780287042000,-500.0,0.00025325,2]
[423662647,1780287042000,-502.39710445,0.00025325,2]
[423662657,1780287042000,-500.0,0.00025325,2]
[423662655,1780287042000,-501.15991206,0.00025325,2]
[423662651,1780287042000,-500.0,0.00025325,2]
[423662652,1780287042000,-500.0,0.00025325,2]
[423662650,1780287042000,-500.50479475,0.00025325,2]
[423662656,1780287042000,-501.27871863,0.00025325,2]
[423662648,1780287042000,-500.91828229,0.00025325,2]
[423662659,1780287042000,-500.0,0.00025325,2]
[423662658,1780287042000,-500.67096914,0.00025325,2]
[423662669,1780287042000,-500.0,0.00025325,2]
[423662670,1780287042000,-500.0,0.00025325,2]
[423662660,1780287042000,-313.17695423,0.00025325,2]
[423662661,1780287042000,-500.0,0.00025325,2]
[423662649,1780287042000,-502.30909093,0.00025325,2]
[423662691,1780287042000,-500.59283035,0.00025325,2]
[423662636,1780287042000,-500.0,0.00025325,2]
[423662701,1780287042000,-500.0,0.00025325,2]
[423662728,1780287042000,-500.0,0.00025325,2]